bitfinex-derivatives/quotes_SOLF0:USTF0_20241002
["timestamp","ask_amount","ask_price","bid_price","bid_amount"]
[1727865117926,8.49502,146.87,146.81,1.3706]
[1727865118127,8.49502,146.87,146.82,5.16]
[1727865118333,8.37,146.85,146.83,3.4056]
[1727865118522,8.37,146.85,146.81,14.9006]
[1727865118826,3.4052,146.86,146.83,11.7757]
[1727865119127,8.37,146.86,146.82,8.37]
[1727865119522,3.53002,146.87,146.84,3.4055]
[1727865119722,11.90002,146.87,146.84,3.4055]
[1727865120617,11.90002,146.87,146.85,3.4053]
[1727865120928,11.90002,146.87,146.83,8.37]
[1727865121625,11.90002,146.87,146.85,3.4053]
[1727865123324,11.90002,146.87,146.83,8.37]
[1727865123528,11.90002,146.87,146.84,3.4054]
[1727865124137,0.12502,146.87,146.86,3.4051]
[1727865135335,1.3354,146.94,146.86,8.37]
[1727865135535,8.49502,146.93,146.88,8.37]
[1727865135837,11.89862,146.93,146.9,3.404]
[1727865136036,8.37,146.92,146.9,3.404]
[1727865145039,3.52862,146.93,146.9,3.404]
[1727865145238,8.37,146.92,146.9,3.404]
[1727865148647,11.7737,146.92,146.9,3.404]
[1727865150341,3.52862,146.93,146.9,11.774]
[1727865150549,0.12502,146.93,146.92,11.7737]
[1727865150747,0.12518,146.95,146.92,8.37]
[1727865151047,0.12502,146.99,146.98,3.4023]
[1727865151236,0.12502,146.99,146.96,8.37]
[1727865152152,0.12502,146.99,146.97,3.4025]
[1727865153152,0.12502,146.99,146.98,3.4023]
[1727865153345,0.12502,146.99,146.98,11.7723]
[1727865153946,0.12502,146.99,146.98,3.4023]
[1727865155955,0.12502,146.99,146.98,11.7723]
[1727865159150,0.12502,147.05,147.03,3.401]
[1727865159351,0.12502,147.05,147.04,8.37]
[1727865159860,0.12502,147.05,147.04,11.7709]
[1727865160067,0.12502,147.05,147.03,5.16]
[1727865160356,0.12502,147.05,147.03,16.931]
[1727865160655,0.12502,147.05,147.03,11.771]
[1727865160859,0.12502,147.05,147.04,11.7709]
[1727865165465,0.12502,147.11,147.04,8.37]
[1727865165675,0.12502,147.11,147.08,8.37]
[1727865165967,0.12502,147.11,147.08,11.7699]
[1727865166159,0.12502,147.11,147.08,8.37]
[1727865166358,0.12502,147.11,147.09,8.37]
[1727865166554,0.12502,147.11,147.1,3.3995]
[1727865166960,0.12502,147.11,147.08,8.37]
[1727865167364,8.37,147.09,147.04,5.16]
[1727865167562,8.37,147.09,147.05,8.37]
[1727865167756,8.37,147.09,147.04,8.37]
[1727865167963,3.4007,147.05,147.03,88.82056449]
[1727865168166,8.37,147.08,147.03,88.82056449]
[1727865168466,3.4004,147.07,147.04,3.4009]
[1727865169568,9.7534,147.09,147.04,11.7709]
[1727865169767,3.4001,147.08,147.04,11.7709]
[1727865169974,9.7534,147.09,147.04,11.7709]
[1727865170362,3.4001,147.08,147.04,11.7709]
[1727865170563,9.7534,147.09,147.04,11.7709]
[1727865172072,3.4001,147.08,147.05,3.4006]
[1727865172865,1.3834,147.09,147.05,8.37]
[1727865173071,5.16,147.1,147.07,8.37]
[1727865173377,0.12502,147.11,147.07,11.77]
[1727865173574,3.3996,147.1,147.07,11.77]
[1727865173969,0.12502,147.11,147.08,8.37]
[1727865174274,0.12502,147.11,147.02,4.60397437]
[1727865174275,0.12502,147.11,147.05,5.16]
[1727865174475,0.12502,147.11,147.1,8.37]
[1727865174669,0.12502,147.11,147.1,11.7695]
[1727865177976,0.12502,147.17,147.15,3.3983]
[1727865178181,0.12502,147.17,147.15,8.37]
[1727865178678,3.52292,147.17,147.13,8.37]
[1727865179277,3.52292,147.17,147.13,11.7687]
[1727865179984,3.52292,147.17,147.15,8.37]
[1727865180182,0.12502,147.17,147.15,8.37]
[1727865180777,3.52302,147.17,147.15,8.37]
[1727865181077,0.12502,147.17,147.15,8.37]
[1727865181278,0.12502,147.17,147.16,8.37]
[1727865181683,3.397,147.21,147.16,11.7681]
[1727865181880,5.26502,147.23,147.19,8.37]
[1727865182081,5.26502,147.23,147.16,80.3782648]
[1727865182282,0.12502,147.23,147.22,8.37]
[1727865182786,0.12502,147.23,147.21,8.37]
[1727865183579,0.12502,147.23,147.2,3.3972]
[1727865184387,0.12502,147.23,147.19,13.04]
[1727865184589,3.3969,147.22,147.18,5.14]
[1727865185096,3.3972,147.2,147.16,80.3782648]
[1727865185277,18.30502,147.23,147.16,80.3782648]
[1727865185691,3.397,147.21,147.16,80.3782648]
[1727865185888,18.30502,147.23,147.16,80.3782648]
[1727865186192,3.397,147.21,147.16,80.3782648]
[1727865186392,18.30502,147.23,147.16,80.3782648]
[1727865186578,18.30502,147.23,147.13,18.18]
[1727865186781,3.3977,147.18,147.14,3.3985]
[1727865187293,3.3978,147.18,147.14,3.3985]
[1727865187493,13.04,147.21,147.12,2.539]
[1727865187698,18.18,147.19,147.11,8.66422]
[1727865188086,3.3985,147.15,147.11,8.66422]
[1727865188391,18.18,147.19,147.11,0.12502]
[1727865188889,1.3583,147.18,147.12,3.3989]
[1727865189196,6.4983,147.18,147.11,0.12502]
[1727865189392,1.2975,147.2,147.12,13.04]
[1727865189695,3.3976,147.19,147.14,13.04]
[1727865189899,3.3976,147.19,147.15,3.3983]
[1727865190289,1.3583,147.22,147.14,18.18]
[1727865190488,1.3583,147.22,147.18,3.3976]
[1727865191696,3.3969,147.22,147.18,3.3976]
[1727865191989,0.12502,147.23,147.2,3.397]
[1727865192389,0.12502,147.23,147.18,18.18]
[1727865192588,0.12502,147.23,147.2,13.04]
[1727865192991,0.12502,147.23,147.2,16.437]
[1727865194894,0.12502,147.23,147.2,13.04]
[1727865195191,0.12502,147.23,147.21,3.3969]
[1727865195598,3.52152,147.23,147.2,16.4372]
[1727865195800,0.12502,147.23,147.2,16.4372]
[1727865198699,0.12502,147.23,147.2,13.04]
[1727865199893,3.52162,147.23,147.2,16.4371]
[1727865201203,3.52162,147.23,147.2,13.04]
[1727865204098,0.12502,147.23,147.2,13.04]
[1727865204299,3.3968,147.22,147.2,13.04]
[1727865204606,0.12502,147.23,147.22,3.3967]
[1727865204807,0.12502,147.23,147.21,13.04]
[1727865205500,0.12502,147.23,147.21,16.4368]
[1727865207403,3.52162,147.23,147.2,16.4371]
[1727865207706,3.52162,147.23,147.2,13.04]
[1727865207904,3.3968,147.22,147.2,13.04]
[1727865208296,0.12502,147.23,147.2,13.04]
[1727865209097,3.52172,147.23,147.2,16.4371]
[1727865209296,3.52172,147.23,147.2,13.04]
[1727865209297,0.12502,147.23,147.2,13.04]
[1727865209500,0.12502,147.23,147.22,8.35]
[1727865209803,3.52152,147.23,147.22,8.35]
[1727865210811,0.12502,147.23,147.22,8.35]
[1727865213210,0.12502,147.23,147.22,11.7467]
[1727865216909,0.12518,147.24,147.23,3.3965]
[1727865217104,3.3954,147.28,147.23,8.35]
[1727865217305,3.3954,147.28,147.27,8.35]
[1727865217708,0.12502,147.29,147.27,8.35]
[1727865218002,3.52032,147.29,147.27,8.35]
[1727865218207,0.12502,147.29,147.27,8.35]
[1727865218406,0.12502,147.29,147.28,8.35]
[1727865219005,0.12502,147.29,147.26,8.35]
[1727865219411,0.12502,147.29,147.24,5.2]
[1727865219714,3.3955,147.28,147.27,8.35]
[1727865220411,0.12502,147.29,147.27,8.35]
[1727865221213,3.3954,147.28,147.27,8.35]
[1727865221617,0.12502,147.29,147.26,8.35]
[1727865223016,3.3956,147.27,147.26,8.35]
[1727865224513,8.35,147.28,147.21,2.6893]
[1727865224714,8.35,147.28,147.21,9.7402]
[1727865224915,1.3486,147.27,147.23,8.35]
[1727865225113,3.3964,147.24,147.23,8.35]
[1727865226114,8.35,147.24,147.17,83.20032849]
[1727865226318,8.35,147.22,147.17,80.49962849]
[1727865226721,3.3977,147.18,147.17,80.49962849]
[1727865226929,3.3977,147.18,147.17,0.12502]
[1727865227224,3.3986,147.14,147.13,8.35]
[1727865227420,8.35,147.16,147.12,1.3252]
[1727865227618,8.35,147.16,147.11,0.12502]
[1727865227619,3.399,147.13,147.11,8.47502]
[1727865227911,8.35,147.16,147.11,8.47502]
[1727865228326,5.2,147.17,147.11,8.47502]
[1727865228327,5.2,147.17,147.12,8.35]
[1727865228618,5.2,147.19,147.15,8.35]
[1727865228930,8.5976,147.19,147.16,3.3981]
[1727865229119,5.2,147.19,147.15,8.35]
[1727865229518,5.2,147.19,147.13,13.05]
[1727865229825,6.5486,147.2,147.15,3.3982]
[1727865230219,3.3976,147.19,147.15,3.3982]
[1727865230721,6.5486,147.2,147.15,3.3982]
[1727865230924,3.3978,147.18,147.15,3.3982]
[1727865231729,6.5486,147.2,147.13,13.05]
[1727865231929,6.5486,147.2,147.14,3.3985]
[1727865231930,3.3979,147.17,147.14,3.3985]
[1727865233827,6.5486,147.2,147.13,13.05]
[1727865234032,6.5486,147.2,147.16,3.3979]
[1727865234424,6.5486,147.2,147.15,13.05]
[1727865234633,5.2,147.22,147.17,13.05]
[1727865235125,6.62392,147.23,147.17,13.05]
[1727865235427,6.62392,147.23,147.2,3.397]
[1727865236129,6.62392,147.23,147.17,13.05]
[1727865236329,6.62392,147.23,147.18,3.3976]
[1727865236724,3.3971,147.21,147.18,3.3976]
[1727865236924,6.62392,147.23,147.14,13.05]
[1727865237121,1.3448,147.22,147.16,3.398]
[1727865237433,1.3448,147.22,147.14,13.05]
[1727865237729,1.3448,147.22,147.17,3.3978]
[1727865237918,3.3973,147.2,147.17,3.3978]
[1727865238121,1.3448,147.22,147.16,3.398]
[1727865238726,14.3948,147.22,147.15,3.3983]
[1727865238928,14.3948,147.22,147.14,13.05]
[1727865239123,3.3978,147.18,147.14,13.05]
[1727865239328,3.3978,147.18,147.15,3.3983]
[1727865239534,3.3982,147.16,147.13,1.3385]
[1727865239831,5.2,147.19,147.13,1.3385]
[1727865240029,3.398,147.17,147.14,3.3984]
[1727865240433,5.2,147.19,147.14,3.3984]
[1727865241528,3.3981,147.16,147.14,3.3984]
[1727865241838,5.2,147.19,147.16,3.3981]
[1727865242135,5.2,147.19,147.14,13.05]
[1727865242333,1.3448,147.22,147.15,13.05]
[1727865242529,9.9817,147.22,147.15,13.05]
[1727865243030,6.5848,147.22,147.18,3.3975]
[1727865243235,3.3972,147.21,147.18,3.3975]
[1727865243440,6.5848,147.22,147.15,13.05]
[1727865243641,1.3448,147.22,147.15,13.05]
[1727865244634,3.3973,147.2,147.15,13.05]
[1727865245335,3.3973,147.2,147.17,3.3978]
[1727865246339,3.398,147.17,147.14,13.05]
[1727865246541,5.24,147.19,147.12,13.05]
[1727865246739,5.24,147.19,147.13,13.05]
[1727865247434,5.24,147.19,147.11,13.17502]
[1727865247635,3.3981,147.17,147.14,3.3986]
[1727865248244,3.3981,147.16,147.13,3.3987]
[1727865248834,3.3981,147.16,147.11,13.17502]
[1727865249040,5.24,147.19,147.12,3.3989]
[1727865249240,5.24,147.19,147.11,13.17502]
[1727865249536,5.24,147.19,147.11,3.52412]
[1727865249732,13.05,147.18,147.11,0.12502]
[1727865250240,3.3986,147.15,147.12,3.399]
[1727865250739,3.3986,147.14,147.11,0.12502]
[1727865250929,18.29,147.15,147.11,0.12502]
[1727865251841,3.3986,147.14,147.11,0.12502]
[1727865252043,18.29,147.15,147.11,0.12502]
[1727865252345,3.399,147.13,147.11,0.12502]
[1727865253541,3.399,147.12,147.11,0.12502]
[1727865254744,3.3989,147.13,147.11,0.12502]
[1727865255044,13.05,147.14,147.11,0.12502]
[1727865255445,1.2901,147.16,147.11,0.12502]
[1727865255740,5.24,147.19,147.12,13.05]
[1727865255934,8.6376,147.19,147.12,14.3462]
[1727865256138,5.24,147.19,147.12,19.5862]
[1727865256334,5.24,147.19,147.17,3.3978]
[1727865256539,5.24,147.19,147.14,13.05]
[1727865256744,5.24,147.21,147.14,13.05]
[1727865257848,6.0409,147.22,147.14,13.05]
[1727865257849,11.2809,147.22,147.14,13.05]
[1727865258049,3.397,147.21,147.18,3.3975]
[1727865258236,7.8839,147.22,147.14,13.05]
[1727865258438,6.5535,147.22,147.16,13.05]
[1727865258637,6.5535,147.22,147.2,3.3971]
[1727865259338,6.5535,147.22,147.21,3.397]
[1727865259544,6.5535,147.22,147.16,13.05]
[1727865260345,6.5535,147.22,147.2,3.3971]
[1727865260541,5.24,147.22,147.2,3.3971]
[1727865261246,5.24,147.22,147.16,13.05]
[1727865261447,3.3969,147.22,147.16,13.05]
[1727865262146,3.3969,147.22,147.19,3.3972]
[1727865262947,5.36502,147.23,147.15,13.05]
[1727865263148,13.05,147.22,147.15,13.05]
[1727865263643,3.3974,147.2,147.17,3.3978]
[1727865264451,3.3971,147.21,147.18,3.3974]
[1727865264651,5.36502,147.23,147.15,13.05]
[1727865265050,3.3969,147.22,147.19,3.3973]
[1727865265449,5.36502,147.23,147.15,13.05]
[1727865265650,3.3972,147.21,147.18,3.3975]
[1727865266654,3.3972,147.21,147.19,3.3974]
[1727865267755,3.3969,147.22,147.19,3.3974]
[1727865267946,3.3969,147.22,147.2,3.3972]
[1727865268950,3.3969,147.22,147.19,3.3973]
[1727865269344,8.6369,147.22,147.19,3.3973]
[1727865269752,3.397,147.21,147.19,3.3973]
[1727865269942,5.24,147.22,147.18,3.3975]
[1727865270348,18.29,147.22,147.12,15.6211]
[1727865270548,18.29,147.22,147.12,2.5711]
[1727865270549,13.05,147.2,147.12,2.5711]
[1727865270849,3.3983,147.16,147.12,1.2962]
[1727865271248,5.18,147.17,147.13,3.3987]
[1727865271456,3.3982,147.16,147.12,1.2962]
[1727865271653,5.18,147.17,147.12,1.2962]
[1727865271853,5.18,147.17,147.13,3.3987]
[1727865272549,5.18,147.17,147.11,0.12502]
[1727865272550,13.05,147.16,147.11,0.12502]
[1727865273150,3.3988,147.14,147.11,3.52412]
[1727865275658,3.399,147.12,147.11,0.12502]
[1727865275852,16.449,147.12,147.11,0.12502]
[1727865276253,16.449,147.12,147.07,3.4001]
[1727865276254,13.05,147.12,147.07,3.4001]
[1727865276455,13.05,147.1,147.05,0.12502]
[1727865276761,5.18,147.09,147.05,0.12502]
[1727865276958,3.4001,147.08,147.05,0.12502]
[1727865277258,5.18,147.09,147.05,3.52572]
[1727865277462,3.4004,147.07,147.05,0.12502]
[1727865279461,3.4001,147.08,147.06,3.4004]
[1727865280057,21.66093545,147.09,147.05,0.12502]
[1727865280267,13.05,147.07,147.05,0.12502]
[1727865280661,13.05,147.07,147.02,3.4013]
[1727865280867,13.05,147.04,147.02,3.4013]
[1727865281765,3.4011,147.03,146.99,0.12502]
[1727865282169,13.05,147.04,146.99,0.12502]
[1727865282363,13.05,147.06,146.99,0.12502]
[1727865282764,16.4506,147.06,147.03,3.401]
[1727865283259,13.05,147.06,147.0,1.2556]
[1727865283563,5.2,147.07,147.05,3.4007]
[1727865285965,13.05,147.1,147.0,14.3056]
[1727865286270,5.2,147.08,147.01,1.3403]
[1727865286463,5.2,147.08,147.01,6.5403]
[1727865286764,8.6,147.08,147.05,3.4005]
[1727865287369,5.2,147.08,147.06,3.4004]
[1727865288175,5.2,147.08,147.07,3.4002]
[1727865290172,13.17502,147.11,147.03,3.34295627]
[1727865290488,18.37502,147.11,147.04,3.39567355]
[1727865290680,0.12502,147.11,147.1,3.3995]
[1727865293271,0.12502,147.11,147.06,1.3822]
[1727865293272,3.52442,147.11,147.07,3.4001]
[1727865293467,13.17502,147.11,147.06,1.3822]
[1727865293873,3.3997,147.09,147.06,4.7825]
[1727865294078,3.3997,147.09,147.06,3.4003]
[1727865294778,13.17502,147.11,147.06,3.4003]
[1727865295077,13.05,147.07,147.02,1.3562]
[1727865295375,5.2,147.08,147.02,1.3562]
[1727865295777,5.2,147.08,147.06,3.4003]
[1727865297268,5.2,147.08,147.02,1.3562]
[1727865297471,18.37502,147.11,147.02,14.4062]
[1727865297880,3.3995,147.1,147.07,3.4]
[1727865298392,21.77442,147.11,147.09,3.3997]
[1727865298871,5.32502,147.11,147.1,3.3995]
[1727865299069,0.12502,147.11,147.1,3.3995]
[1727865300372,0.12502,147.17,147.08,18.25]
[1727865300577,5.32502,147.17,147.09,13.05]
[1727865301182,0.12502,147.17,147.16,3.3981]
[1727865301777,0.12502,147.23,147.15,13.05]
[1727865302080,13.05,147.22,147.14,1.2545]
[1727865302277,13.05,147.2,147.14,1.2545]
[1727865302473,13.05,147.2,147.16,3.3981]
[1727865302780,18.25,147.2,147.13,5.2]
[1727865303080,18.25,147.2,147.15,3.3982]
[1727865303280,13.05,147.18,147.11,0.12502]
[1727865303494,5.2,147.2,147.11,0.12502]
[1727865303495,13.05,147.16,147.11,0.12502]
[1727865303879,18.25,147.16,147.11,0.12502]
[1727865304390,21.6481,147.16,147.11,0.12502]
[1727865304989,3.3984,147.15,147.11,0.12502]
[1727865305689,18.25,147.16,147.12,3.3989]
[1727865306185,3.3984,147.15,147.12,3.3989]
[1727865307789,3.3987,147.14,147.11,3.52422]
[1727865307989,3.3987,147.14,147.11,0.12502]
[1727865308691,3.3987,147.14,147.11,3.52422]
[1727865308885,3.3989,147.13,147.11,3.52422]
[1727865309383,3.399,147.13,147.11,0.12502]
[1727865309587,13.05,147.12,147.11,0.12502]
[1727865309787,18.25,147.12,147.07,3.4001]
[1727865309988,16.4501,147.08,147.05,0.12502]
[1727865310487,16.4501,147.08,147.05,3.52552]
[1727865310890,3.4003,147.07,147.05,0.12502]
[1727865311090,18.25,147.08,147.05,0.12502]
[1727865311284,13.05,147.1,147.05,0.12502]
[1727865311585,5.2,147.1,147.05,0.12502]
[1727865313679,3.3999,147.09,147.06,3.4003]
[1727865313886,5.2,147.1,147.05,0.12502]
[1727865314482,3.4,147.08,147.05,3.52552]
[1727865314896,5.2,147.1,147.05,0.12502]
[1727865315091,5.2,147.1,147.07,3.4002]
[1727865315386,5.2,147.1,147.05,0.12502]
[1727865315387,14.3599,147.12,147.05,0.12502]
[1727865315587,19.5599,147.12,147.05,0.12502]
[1727865315889,13.05,147.12,147.05,5.32502]
[1727865316789,13.05,147.14,147.05,5.32502]
[1727865317091,76.99302421,147.17,147.05,5.32502]
[1727865317092,5.2,147.16,147.09,13.05]
[1727865317284,5.2,147.16,147.14,3.3985]
[1727865317483,5.2,147.16,147.09,18.25]
[1727865317880,5.2,147.16,147.14,3.3985]
[1727865318085,8.5981,147.16,147.14,3.3985]
[1727865319189,3.3984,147.15,147.09,18.25]
[1727865319392,5.2,147.16,147.09,18.25]
[1727865319589,18.25,147.16,147.07,13.05]
[1727865319791,13.05,147.14,147.05,0.12502]
[1727865319987,13.05,147.14,147.06,5.2]
[1727865320384,3.399,147.13,147.06,5.2]
[1727865320886,13.05,147.14,147.08,3.3999]
[1727865321085,13.05,147.14,147.06,5.2]
[1727865321086,3.3991,147.12,147.06,5.2]
[1727865321289,13.05,147.14,147.06,5.2]
[1727865322490,3.3993,147.12,147.08,3.3999]
[1727865322688,13.05,147.14,147.08,3.3999]
[1727865322890,13.05,147.14,147.06,5.2]
[1727865323092,3.3992,147.12,147.06,5.2]
[1727865323597,3.3994,147.11,147.05,0.12502]
[1727865323794,18.25,147.12,147.05,0.12502]
[1727865324196,21.6491,147.12,147.09,3.3996]
[1727865324503,21.6491,147.12,147.05,0.12502]
[1727865325801,21.6491,147.12,147.09,3.3995]
[1727865326108,3.3993,147.11,147.09,3.3995]
[1727865327703,3.3993,147.11,147.08,3.3999]
[1727865327904,3.3993,147.11,147.05,0.12502]
[1727865328313,3.3998,147.09,147.07,3.4]
[1727865328605,3.3998,147.09,147.05,0.12502]
[1727865328806,3.3998,147.09,147.06,3.4003]
[1727865329204,13.05,147.1,147.05,0.12502]
[1727865329503,18.25,147.12,147.05,0.12502]
[1727865329709,13.05,147.1,147.05,0.12502]
[1727865330000,13.05,147.1,147.05,3.52552]
[1727865330001,3.4001,147.08,147.05,3.52552]
[1727865330599,3.4002,147.07,147.05,3.52552]
[1727865330795,13.05,147.08,147.05,0.12502]
[1727865331001,14.346,147.1,147.05,0.12502]
[1727865331710,14.346,147.1,147.08,3.3998]
[1727865332701,14.346,147.1,147.06,3.4003]
[1727865332901,14.346,147.1,147.05,0.12502]
[1727865333302,13.05,147.08,147.05,0.12502]
[1727865333609,13.05,147.08,146.98,7.7832]
[1727865333610,13.05,147.06,146.98,7.7832]
[1727865333800,8.62278014,147.08,147.01,3.4014]
[1727865334005,13.05,147.05,147.01,3.4014]
[1727865334301,3.401,147.04,147.01,3.4014]
[1727865334502,13.05,147.05,147.01,3.4014]
[1727865334912,3.4009,147.04,147.01,3.4014]
[1727865335204,13.05,147.05,146.98,7.7832]
[1727865335597,16.4508,147.05,146.98,7.7832]
[1727865336099,16.4508,147.05,147.02,3.4012]
[1727865336305,3.4009,147.04,147.02,3.4012]
[1727865336703,13.05,147.05,146.98,7.7832]
[1727865336908,8.62278014,147.08,146.98,5.16]
[1727865336909,13.05,147.03,146.98,5.16]
[1727865337100,13.05,147.03,146.94,93.54666699]
[1727865337101,13.05,147.03,146.94,81.75276699]
[1727865337504,13.05,147.01,146.94,81.75276699]
[1727865337700,13.05,147.01,146.94,86.91276699]
[1727865338006,5.16,147.0,146.94,81.75276699]
[1727865338207,8.5618,147.0,146.96,3.4026]
[1727865338411,5.16,147.0,146.96,3.4026]
[1727865338603,13.05,146.99,146.96,3.4026]
[1727865338910,16.4523,146.99,146.96,3.4026]
[1727865339106,16.4523,146.99,146.94,81.75276699]
[1727865339107,13.05,146.99,146.97,3.4024]
[1727865339307,5.16,147.0,146.97,3.4024]
[1727865339510,5.16,147.0,146.94,81.75276699]
[1727865339708,13.05,146.99,146.94,80.49666699]
[1727865339909,18.21,146.99,146.94,80.49666699]
[1727865340205,21.6121,146.99,146.96,3.4027]
[1727865340803,21.6121,146.99,146.94,80.49666699]
[1727865341009,18.21,146.99,146.98,3.4023]
[1727865341216,18.21,146.99,146.93,0.12502]
[1727865342098,21.6123,146.99,146.94,3.403]
[1727865342311,18.21,146.99,146.93,0.12502]
[1727865343008,13.05,146.97,146.93,0.12502]
[1727865343205,13.05,146.95,146.93,0.12502]
[1727865343608,18.23,146.95,146.93,0.12502]
[1727865344013,21.6331,146.95,146.93,0.12502]
[1727865344512,3.4032,146.94,146.93,0.12502]
[1727865344714,18.23,146.95,146.93,0.12502]
[1727865345213,18.23,146.95,146.87,80.65477136]
[1727865345408,13.05,146.92,146.87,80.65477136]
[1727865346316,13.05,146.9,146.87,80.65477136]
[1727865346712,13.05,146.9,146.89,3.4044]
[1727865346914,13.05,146.9,146.87,80.65477136]
[1727865347425,13.05,146.88,146.87,80.65477136]
[1727865347718,13.05,146.88,146.87,0.12502]
[1727865347913,3.4051,146.87,146.84,3.4055]
[1727865348113,13.05,146.86,146.84,3.4055]
[1727865348314,13.05,146.88,146.82,1.342]
[1727865349517,13.05,146.88,146.86,3.4049]
[1727865350224,16.4546,146.88,146.86,3.4049]
[1727865350926,13.05,146.88,146.85,3.4052]
[1727865351112,3.4051,146.86,146.81,1.47792]
[1727865351318,5.18,146.87,146.81,1.47792]
[1727865351516,13.05,146.86,146.81,3.53102]
[1727865351728,3.4057,146.84,146.81,0.12502]
[1727865352329,16.4557,146.84,146.81,3.53112]
[1727865352837,3.4058,146.83,146.81,3.53112]
[1727865353141,3.4058,146.83,146.81,0.12502]
[1727865353530,16.4556,146.84,146.81,0.12502]
[1727865353736,13.05,146.84,146.81,0.12502]
[1727865354036,16.4553,146.85,146.81,0.12502]
[1727865354238,16.4553,146.85,146.82,3.4059]
[1727865354535,13.05,146.85,146.81,0.12502]
[1727865355226,16.4554,146.85,146.82,3.4059]
[1727865358039,3.4056,146.84,146.82,3.4059]
[1727865358239,3.4056,146.84,146.81,0.12502]
[1727865358240,3.4056,146.84,146.81,3.53112]
[1727865359031,3.4056,146.84,146.82,3.406]
[1727865359637,13.05,146.85,146.81,0.12502]
[1727865360338,13.05,146.87,146.81,0.12502]
[1727865360537,5.18,146.86,146.81,0.12502]
[1727865360942,13.05,146.87,146.81,0.12502]
[1727865361235,16.9328,146.91,146.82,13.05]
[1727865361438,5.18,146.9,146.83,13.05]
[1727865361740,5.18,146.9,146.83,14.3925]
[1727865361930,1.3027,146.91,146.83,14.3925]
[1727865362134,5.18,146.92,146.86,13.05]
[1727865362536,8.5838,146.92,146.89,3.4042]
[1727865362742,5.18,146.92,146.89,3.4042]
[1727865363144,5.18,146.92,146.84,19.5021]
[1727865363348,13.05,146.91,146.84,6.4521]
[1727865363643,3.4043,146.9,146.84,6.4521]
[1727865363840,3.4043,146.9,146.87,3.4047]
[1727865364542,5.18,146.92,146.89,3.4043]
[1727865364745,5.18,146.92,146.84,19.5021]
[1727865364746,0.12502,146.93,146.86,13.05]
[1727865364952,5.30502,146.93,146.86,13.05]
[1727865365446,5.30502,146.93,146.91,3.4038]
[1727865366142,0.12502,146.93,146.92,3.4037]
[1727865367850,0.12502,146.93,146.9,1.2588]
[1727865368439,0.12502,146.93,146.92,3.4037]
[1727865368639,5.30502,146.99,146.92,3.4037]
[1727865368640,0.12502,146.99,146.92,5.18]
[1727865368949,20.92,146.98,146.87,0.12502]
[1727865369140,20.92,146.96,146.87,1.39832]
[1727865369341,26.1,146.96,146.87,1.39832]
[1727865369537,20.92,146.93,146.87,4.80312]
[1727865370044,20.92,146.93,146.88,3.4045]
[1727865370643,2.7305,146.95,146.87,1.39832]